bitfinex/quotes_SOLUSD_20250922
["timestamp","ask_amount","ask_price","bid_price","bid_amount"]
[1758501292322,5.95980718,233.82,233.66,13.59559401]
[1758501292641,0.66,233.83,233.68,13.59559401]
[1758501293140,5.95980718,233.78,233.68,13.59559401]
[1758501293342,5.95980718,233.7,233.55,0.66]
[1758501293519,5.95980718,233.66,233.55,0.66]
[1758501293726,0.66,233.7,233.55,0.66]
[1758501293727,5.95980718,233.67,233.55,0.66]
[1758501294146,5.95980718,233.67,233.56,13.59559401]
[1758501294314,5.95980718,233.67,233.51,0.66]
[1758501294634,5.95980718,233.63,233.5,0.66]
[1758501294833,64.82,233.74,233.39,0.66]
[1758501294834,5.95980718,233.56,233.39,0.66]
[1758501295143,0.66,233.62,233.39,0.66]
[1758501295321,0.66,233.69,233.39,0.66]
[1758501295516,5.95980718,233.68,233.4,0.42844901]
[1758501295744,0.66,233.69,233.45,31.2]
[1758501295946,30.86,233.75,233.46,1.0883389]
[1758501295947,0.66,233.73,233.46,1.0883389]
[1758501296153,30.86,233.75,233.47,0.66]
[1758501296327,6.61980718,233.78,233.48,0.42830221]
[1758501296523,0.66,233.78,233.49,0.66]
[1758501296730,5.95980718,233.75,233.49,0.66]
[1758501296931,5.95980718,233.75,233.53,31.2]
[1758501297248,23.33505816,233.91,233.54,0.7]
[1758501297249,5.95980718,233.73,233.54,0.7]
[1758501297419,64.84,233.87,233.54,0.7]
[1758501297624,5.95980718,233.7,233.54,0.7]
[1758501297825,3.33505816,233.88,233.54,0.7]
[1758501298023,5.95980718,233.78,233.54,0.7]
[1758501298222,5.95980718,233.8,233.54,0.7]
[1758501298524,5.95980718,233.78,233.54,0.7]
[1758501298942,5.95980718,233.79,233.58,31.2]
[1758501299147,5.95980718,233.81,233.59,0.7]
[1758501299339,5.95980718,233.82,233.59,0.7]
[1758501299542,0.66,233.84,233.59,0.7]
[1758501300045,0.66,233.88,233.63,31.2]
[1758501300269,0.1,234.04,233.64,0.7]
[1758501300455,5.95980718,233.98,233.69,31.2]
[1758501300624,0.1,234.04,233.73,31.2]
[1758501300824,5.95980718,234.02,233.74,0.42782578]
[1758501301050,0.1,234.04,233.75,0.7]
[1758501301249,0.1,234.04,233.82,31.2]
[1758501301424,0.1,234.04,233.86,31.2]
[1758501301829,0.1,234.04,233.87,0.7]
[1758501302259,0.1,234.04,233.88,0.42756969]
[1758501302561,0.1,234.04,233.89,0.7]
[1758501302741,0.1,234.04,233.9,0.42753313]
[1758501303056,0.1,234.04,233.91,0.7]
[1758501303436,0.66,234.03,233.68,20.0]
[1758501303636,0.66,234.03,233.49,5.95980718]
[1758501303637,0.76,234.04,233.7,20.0]
[1758501303869,0.66,234.03,233.71,1.1278807]
[1758501304156,0.66,234.02,233.72,0.7]
[1758501304536,5.95980718,233.82,233.72,0.7]
[1758501304737,0.66,233.87,233.72,0.7]
[1758501305351,5.95980718,233.83,233.73,4.27844093]
[1758501305569,0.66,233.87,233.72,4.97851393]
[1758501305749,5.95980718,233.91,233.73,0.7]
[1758501305949,0.66,233.94,233.75,31.2]
[1758501305950,5.95980718,233.93,233.75,31.2]
[1758501306264,0.66,234.0,233.76,0.7]
[1758501306568,5.95980718,233.87,233.76,0.7]
[1758501306757,0.66,233.98,233.76,0.7]
[1758501306937,5.95980718,233.96,233.76,0.7]
[1758501307140,36.79980718,234.01,233.77,0.42777088]
[1758501307357,30.84,234.01,233.82,31.2]
[1758501307555,5.95980718,233.99,233.83,0.7]
[1758501307865,0.1,234.04,233.83,0.7]
[1758501308071,5.95980718,233.99,233.83,0.7]
[1758501308272,0.1,234.04,233.83,0.7]
[1758501308768,5.95980718,233.96,233.83,0.7]
[1758501308967,5.95980718,233.96,233.78,4.27737066]
[1758501308968,5.95980718,233.9,233.78,4.97737066]
[1758501309184,5.95980718,233.86,233.7,0.7]
[1758501309347,31.2,233.77,233.47,14.99121942]
[1758501309543,5.95980718,233.62,233.47,0.7]
[1758501309748,0.66,233.61,233.25,0.42872454]
[1758501309954,0.66,233.61,233.33,0.67]
[1758501310666,5.95980718,233.56,233.33,0.67]
[1758501310852,0.67,233.62,233.33,0.67]
[1758501311160,5.95980718,233.61,233.35,31.2]
[1758501311368,5.95980718,233.65,233.4,31.2]
[1758501311674,0.67,233.71,233.41,1.09843065]
[1758501311853,5.95980718,233.68,233.42,1.0984123]
[1758501312053,0.67,233.71,233.43,0.67]
[1758501312252,5.95980718,233.6,233.43,0.67]
[1758501312582,0.67,233.67,233.43,0.67]
[1758501312806,0.67,233.72,233.44,31.2]
[1758501312970,0.67,233.78,233.45,0.67]
[1758501313278,0.67,233.78,233.52,31.2]
[1758501313474,0.67,233.78,233.56,31.2]
[1758501313475,5.95980718,233.76,233.56,31.2]
[1758501313649,5.95980718,233.74,233.57,0.67]
[1758501313845,5.95980718,233.82,233.58,0.42811884]
[1758501314050,0.67,233.86,233.59,31.87]
[1758501314270,5.95980718,233.89,233.63,31.2]
[1758501314452,0.67,233.88,233.64,1.0980089]
[1758501314764,5.95980718,233.76,233.64,0.67]
[1758501314970,0.67,233.86,233.64,0.67]
[1758501315163,5.95980718,233.8,233.64,0.67]
[1758501315365,0.67,233.79,233.64,31.2]
[1758501315675,54.7,233.99,233.64,31.2]
[1758501315676,0.67,233.8,233.64,31.2]
[1758501315883,5.95980718,233.76,233.64,31.2]
[1758501316047,5.95980718,233.7,233.61,14.98223534]
[1758501316366,5.95980718,233.68,233.61,4.28063867]
[1758501316569,5.95980718,233.76,233.61,4.95063867]
[1758501316773,31.2,233.85,233.61,4.95063867]
[1758501316774,0.67,233.78,233.61,4.95063867]
[1758501316971,5.95980718,233.7,233.61,4.95063867]
[1758501317172,5.95980718,233.66,233.53,0.67]
[1758501317355,5.95980718,233.58,233.49,4.28283866]
[1758501317554,0.67,233.58,233.42,0.67]
[1758501317753,31.2,233.63,233.42,0.67]
[1758501317979,0.67,233.68,233.42,0.67]
[1758501318170,5.95980718,233.63,233.42,0.67]
[1758501318378,0.67,233.68,233.42,0.67]
[1758501319299,5.95980718,233.66,233.42,0.67]
[1758501319467,5.95980718,233.62,233.46,31.2]
[1758501319656,5.95980718,233.62,233.47,0.67]
[1758501319857,0.67,233.68,233.47,0.67]
[1758501320287,0.67,233.76,233.48,31.2]
[1758501320594,0.67,233.82,233.52,31.2]
[1758501320757,5.95980718,233.75,233.53,0.67]
[1758501321186,5.95980718,233.66,233.54,14.98672603]
[1758501321360,5.95980718,233.65,233.57,31.2]
[1758501321560,5.95980718,233.65,233.32,20.0]
[1758501321858,5.95980718,233.53,233.38,4.95485731]
[1758501322060,5.95980718,233.57,233.41,31.2]
[1758501322267,20.0,233.8,233.41,31.2]
[1758501322268,3.33505816,233.77,233.42,0.67]
[1758501322487,0.67,233.65,233.42,0.67]
[1758501322659,5.95980718,233.62,233.42,0.67]
[1758501322858,0.67,233.61,233.42,0.67]
[1758501323170,0.67,233.61,233.46,31.2]
[1758501323375,5.95980718,233.63,233.47,0.67]
[1758501323579,5.95980718,233.55,233.43,36.41348583]
[1758501323786,0.67,233.62,233.43,36.41348583]
[1758501324081,31.2,233.67,233.43,36.41348583]
[1758501324082,0.67,233.61,233.43,14.99378828]
[1758501324275,5.95980718,233.5,233.43,14.99378828]
[1758501324480,5.97019509,233.5,233.43,14.99378828]
[1758501324677,0.67,233.52,233.43,14.99378828]
[1758501324876,31.2,233.67,233.43,14.99378828]
[1758501324877,5.97019509,233.51,233.43,14.99378828]
[1758501325077,25.97019509,233.7,233.43,14.99378828]
[1758501325078,0.67,233.63,233.46,5.97019509]
[1758501325292,0.67,233.63,233.47,14.99121942]
[1758501325587,5.97019509,233.6,233.47,14.99121942]
[1758501325886,0.67,233.63,233.51,31.2]
[1758501326066,5.97019509,233.64,233.53,31.2]
[1758501326257,0.67,233.68,233.53,31.2]
[1758501326461,5.97019509,233.6,233.5,31.2]
[1758501326658,5.97019509,233.56,233.47,36.40724717]
[1758501326861,0.67,233.63,233.47,67.60724717]
[1758501327062,5.97019509,233.6,233.48,6.65019509]
[1758501327290,5.97019509,233.6,233.49,36.40412864]
[1758501327496,5.97019509,233.61,233.49,36.40412864]
[1758501327667,0.67,233.63,233.52,37.17019509]
[1758501327870,5.97019509,233.65,233.52,37.17019509]
[1758501328175,5.97019509,233.6,233.49,36.40412864]
[1758501328373,5.97019509,233.54,233.49,4.28283866]
[1758501328700,5.97019509,233.52,233.49,4.28283866]
[1758501329188,5.97019509,233.58,233.49,4.28283866]
[1758501329396,5.97019509,233.58,233.49,10.70709666]
[1758501329570,5.97019509,233.57,233.49,10.70709666]
[1758501329774,5.97019509,233.53,233.47,4.28320555]
[1758501329989,5.97019509,233.53,233.22,20.0]
[1758501329990,5.97019509,233.49,233.39,4.28467372]
[1758501330180,5.97019509,233.45,233.39,4.28467372]
[1758501330377,31.2,233.61,233.37,4.48491671]
[1758501330579,0.68,233.46,233.37,15.19751901]
[1758501330792,2.75357933,233.56,233.39,5.97019509]
[1758501330968,0.68,233.57,233.43,5.97019509]
[1758501331291,0.68,233.63,233.46,5.97019509]
[1758501331479,5.97019509,233.5,233.45,14.99250373]
[1758501331685,0.68,233.55,233.45,14.99250373]
[1758501332070,0.68,233.62,233.48,5.97019509]
[1758501332278,5.97019509,233.62,233.5,5.97019509]
[1758501332485,5.97019509,233.62,233.51,5.97019509]
[1758501332699,5.97019509,233.56,233.45,14.99250373]
[1758501332900,0.68,233.59,233.42,0.68]
[1758501333287,0.68,233.59,233.45,14.99250373]
[1758501334098,64.84,233.73,233.45,14.99250373]
[1758501334302,5.97019509,233.59,233.47,36.40724717]
[1758501334506,2.75347446,233.72,233.51,5.97019509]
[1758501334801,0.68,233.75,233.54,31.2]
[1758501335006,0.68,233.71,233.54,31.2]
[1758501335188,5.97019509,233.64,233.54,31.2]
[1758501335578,0.68,233.71,233.55,6.65019509]
[1758501335777,5.97019509,233.62,233.5,0.68]
[1758501336106,0.68,233.63,233.47,36.40724717]
[1758501336479,5.97019509,233.52,233.47,14.99121942]
[1758501336679,31.2,233.67,233.47,14.99121942]
[1758501336680,31.2,233.67,233.48,0.68]
[1758501336878,0.68,233.64,233.48,0.68]
[1758501337096,5.97019509,233.56,233.48,0.68]
[1758501337293,0.68,233.64,233.48,0.68]
[1758501337706,5.97019509,233.59,233.48,6.65019509]
[1758501337893,23.33505816,233.82,233.51,31.2]
[1758501338203,5.97019509,233.63,233.52,6.65019509]
[1758501338376,0.68,233.69,233.53,14.98736778]
[1758501338581,5.34308908,233.66,233.54,5.34308908]
[1758501338904,35.4,233.76,233.58,5.34308908]
[1758501339092,35.4,233.76,233.57,31.2]
[1758501339093,5.34308908,233.72,233.61,31.2]
[1758501339407,0.68,233.83,233.66,5.34308908]
[1758501339704,5.34308908,233.76,233.67,0.68]
[1758501339905,5.34308908,233.7,233.6,0.68]
[1758501340094,0.68,233.77,233.6,0.68]
[1758501340299,5.34308908,233.64,233.54,0.68]
[1758501340605,5.34308908,233.67,233.56,5.34308908]
[1758501340780,0.68,233.78,233.61,31.2]
[1758501340984,5.34308908,233.66,233.58,31.2]
[1758501341304,5.34308908,233.62,233.55,14.98608434]
[1758501341679,5.34308908,233.65,233.55,20.32917342]
[1758501341881,5.34308908,233.61,233.55,14.98608434]
[1758501342100,5.34308908,233.59,233.5,4.28265524]
[1758501342305,0.68,233.64,233.5,14.98929335]
[1758501342490,5.34308908,233.62,233.5,14.98929335]
[1758501342689,5.34308908,233.62,233.51,5.34308908]
[1758501342905,5.34308908,233.61,233.51,5.34308908]
[1758501343091,5.34308908,233.57,233.5,14.98929335]
[1758501343403,5.34308908,233.53,233.5,4.28265524]
[1758501343604,5.34308908,233.55,233.5,4.28265524]
[1758501343990,0.68,233.6,233.5,14.98929335]
[1758501344195,31.2,233.7,233.5,14.98929335]
[1758501344406,0.68,233.65,233.52,5.34308908]
[1758501344591,5.34308908,233.62,233.52,5.34308908]
[1758501345002,5.34308908,233.6,233.5,16.04972719]
[1758501345306,0.68,233.6,233.48,4.2830221]
[1758501345710,5.34308908,233.52,233.48,4.2830221]
[1758501345894,0.68,233.59,233.48,4.2830221]
[1758501346096,0.68,233.63,233.48,4.2830221]
[1758501346297,5.34308908,233.56,233.48,4.2830221]
[1758501346910,5.34308908,233.52,233.45,4.28357249]
[1758501347209,5.34308908,233.46,233.34,0.68]
[1758501347411,0.68,233.51,233.38,20.34008967]
[1758501347714,0.68,233.51,233.38,36.42128716]
[1758501348015,5.34308908,233.53,233.38,36.42128716]
[1758501348188,0.68,233.6,233.46,5.34308908]
[1758501348387,5.34308908,233.62,233.52,5.34308908]
[1758501348615,5.34308908,233.62,233.51,14.98865144]
[1758501348909,5.34308908,233.52,233.49,4.2827132]
[1758501349212,5.34308908,233.54,233.49,4.2827132]
[1758501349394,5.34308908,233.54,233.49,14.98980986]
[1758501349885,0.68,233.53,233.46,4.28338901]
[1758501350081,0.68,233.59,233.46,20.33495063]
[1758501350512,0.68,233.59,233.46,16.05156162]
[1758501350720,5.34308908,233.57,233.46,16.05156162]
[1758501350920,5.34308908,233.59,233.48,5.34308908]
[1758501351218,0.68,233.64,233.5,5.34308908]
[1758501351401,5.34308908,233.63,233.52,5.34308908]
[1758501351595,5.34308908,233.57,233.46,10.70847254]
[1758501351798,5.34308908,233.52,233.46,11.38847254]
[1758501352105,5.34308908,233.52,233.46,10.70847254]
[1758501352308,2.7605523,233.63,233.49,5.34308908]
[1758501352514,64.08,233.71,233.47,0.68]
[1758501352515,0.68,233.62,233.5,14.98929335]
[1758501352817,5.34308908,233.54,233.5,14.98929335]
[1758501353420,0.68,233.62,233.43,4.28393951]
[1758501353421,5.34308908,233.52,233.43,4.28393951]
[1758501353715,5.34308908,233.5,233.43,4.28393951]
[1758501353923,33.97721173,233.6,233.43,4.28393951]
[1758501353924,5.34308908,233.48,233.43,4.28393951]
[1758501354145,0.68,233.56,233.43,14.99378828]
[1758501354525,5.34308908,233.51,233.43,14.99378828]
[1758501355029,0.68,233.56,233.43,14.99378828]
[1758501355236,5.34308908,233.52,233.43,14.99378828]
[1758501355437,5.34308908,233.56,233.44,6.02308908]
[1758501355617,2.77721173,233.58,233.48,5.34308908]
[1758501355948,5.34308908,233.59,233.48,5.34308908]
[1758501356148,5.34678473,233.49,233.37,5.1649939]
[1758501356443,5.34678473,233.47,233.37,15.8775962]
[1758501356639,3.29376843,233.47,233.37,15.8775962]
[1758501357126,31.2,233.49,233.37,0.2]
[1758501357431,3.29376843,233.41,233.37,4.48500995]
[1758501357621,63.2,233.5,233.2,2.23965599]
[1758501357622,3.29376843,233.38,233.2,2.23965599]
[1758501357842,31.2,233.36,233.2,2.23965599]
[1758501358023,3.29376843,233.23,233.15,0.67]
[1758501358341,3.29376843,233.28,233.15,0.67]
[1758501358522,3.29376843,233.29,233.16,36.45565275]
[1758501358837,3.29376843,233.34,233.19,31.2]
[1758501359030,3.29376843,233.34,233.2,0.67]
[1758501359231,0.68,233.4,233.2,0.67]
[1758501359440,3.29376843,233.4,233.2,1.09881646]
[1758501359634,3.29376843,233.43,233.21,0.67]
[1758501359824,0.68,233.45,233.22,0.42877969]
[1758501360024,3.29376843,233.42,233.23,0.67]
[1758501360227,0.68,233.45,233.23,0.67]
[1758501360443,2.7734057,233.48,233.24,0.42874292]
[1758501360646,0.68,233.6,233.28,31.2]
[1758501360820,5.34899093,233.56,233.29,1.09865103]
[1758501361019,66.11151466,233.66,233.28,31.2]
[1758501361020,5.34899093,233.52,233.3,0.67]
[1758501361442,2.77564168,233.61,233.31,0.42861429]
[1758501361643,0.68,233.63,233.36,31.2]
[1758501361838,0.68,233.68,233.37,1.09850409]
[1758501362046,34.74,233.78,233.42,31.2]
[1758501362047,2.77564168,233.69,233.42,31.2]
[1758501362249,2.77564168,233.69,233.39,12.83]
[1758501362250,3.45564168,233.77,233.48,31.2]
[1758501362546,3.45564168,233.77,233.45,20.0]
[1758501362547,3.45564168,233.77,233.53,31.2]
[1758501362751,5.34899093,233.8,233.54,0.67]
[1758501363043,0.68,233.79,233.55,0.42817383]
[1758501363248,0.68,233.79,233.56,0.67]
[1758501363739,5.34899093,233.81,233.6,31.2]
[1758501363953,0.68,233.8,233.61,0.67]
[1758501364119,5.34899093,233.74,233.61,0.67]
[1758501364437,5.34899093,233.67,233.57,14.98480112]
[1758501364750,5.34899093,233.64,233.57,4.28137175]
[1758501364927,5.34899093,233.63,233.57,4.28137175]
[1758501365251,5.34899093,233.61,233.51,4.28240553]
[1758501365459,6.02899093,233.63,233.48,31.2]
[1758501365630,0.68,233.63,233.49,4.28283866]
[1758501365954,31.2,233.69,233.37,21.42487738]
[1758501365955,0.68,233.62,233.41,0.67]
[1758501366123,31.2,233.6,233.38,4.28485731]
[1758501366318,31.2,233.56,233.31,0.67]
[1758501366548,2.77564168,233.55,233.31,15.67145407]
[1758501366716,31.88,233.54,233.32,0.67]
[1758501366916,0.68,233.54,233.32,0.67]
[1758501367140,5.34899093,233.46,233.34,31.2]
[1758501367349,0.68,233.53,233.35,0.67]
[1758501367516,5.34899093,233.49,233.35,0.67]
[1758501367715,0.68,233.53,233.36,14.9982859]
[1758501367927,6.02899093,233.58,233.37,0.67]
[1758501368125,6.02899093,233.58,233.39,31.2]
[1758501368346,0.68,233.58,233.4,0.67]
[1758501368534,5.34899093,233.57,233.4,0.67]
[1758501368726,3.4622701,233.63,233.41,0.42843065]
[1758501369043,5.34899093,233.57,233.42,0.67]
[1758501369259,0.65,233.57,233.39,31.2]
[1758501369467,0.65,233.56,233.36,14.9982859]
[1758501369633,0.65,233.55,233.36,14.9982859]
[1758501369964,5.34899093,233.47,233.36,4.28522454]
[1758501370140,5.34899093,233.45,233.31,4.2861429]
[1758501370342,0.65,233.46,233.31,4.2861429]
[1758501370543,0.65,233.52,233.32,0.7]
[1758501370743,0.65,233.52,233.34,31.2]
[1758501370944,2.78260073,233.55,233.35,0.7]
[1758501371129,5.34899093,233.45,233.31,15.00150015]
[1758501371335,5.34899093,233.39,233.26,0.7]
[1758501371650,0.65,233.44,233.27,4.28687786]
[1758501371853,5.34899093,233.39,233.27,4.28687786]
[1758501372036,0.65,233.38,233.27,4.28687786]
[1758501372236,0.65,233.42,233.27,4.28687786]
[1758501372447,5.34899093,233.4,233.28,0.7]
[1758501372653,0.65,233.45,233.28,0.7]
[1758501372875,5.34899093,233.42,233.3,31.2]
[1758501373062,0.65,233.49,233.31,0.7]
[1758501373265,3.47151466,233.61,233.31,0.7]
[1758501373435,5.34899093,233.53,233.31,0.7]
[1758501373637,5.34899093,233.47,233.32,15.00085718]
[1758501373867,5.34899093,233.41,233.32,4.28595919]
[1758501374071,5.34899093,233.33,233.19,0.7]
[1758501374273,0.65,233.4,233.2,15.00827023]
[1758501374571,0.65,233.4,233.21,0.7]
[1758501374774,0.65,233.4,233.23,31.2]
[1758501374962,3.47151466,233.57,233.24,1.12874292]
[1758501375135,5.34899093,233.51,233.25,0.7]
[1758501375339,60.72,233.6,233.25,0.7]
[1758501375340,5.34899093,233.47,233.25,0.7]
[1758501375634,0.65,233.5,233.29,31.2]
[1758501375864,0.65,233.5,233.3,0.7]
[1758501375865,5.99899093,233.5,233.3,0.7]
[1758501376057,0.65,233.5,233.3,0.7]
[1758501376261,5.34899093,233.44,233.26,15.00471575]
[1758501376558,0.65,233.43,233.26,15.00471575]
[1758501376759,5.99899093,233.43,233.27,0.7]
[1758501376936,0.65,233.43,233.29,31.2]
[1758501377135,0.65,233.48,233.3,0.7]
[1758501377556,5.99899093,233.48,233.3,0.7]
[1758501377745,5.99899093,233.48,233.31,15.00150015]
[1758501377746,5.34899093,233.46,233.31,15.00150015]
[1758501377955,0.65,233.48,233.31,15.00150015]
[1758501378181,5.34899093,233.44,233.31,4.2861429]
[1758501378386,5.34899093,233.4,233.27,4.28675365]
[1758501378671,5.34899093,233.37,233.25,4.98720106]
[1758501378870,0.65,233.39,233.25,4.98720106]
[1758501379175,0.65,233.46,233.26,0.7]
[1758501379370,5.34899093,233.45,233.28,31.2]
[1758501379572,5.99899093,233.46,233.29,0.7]
[1758501379734,5.99899093,233.46,233.3,15.00214315]
[1758501379938,5.34899093,233.44,233.3,15.00214315]
[1758501380139,31.2,233.47,233.3,4.28632661]
[1758501380335,5.34899093,233.4,233.3,4.28632661]
[1758501380560,5.99899093,233.4,233.3,4.28632661]
[1758501380863,0.65,233.4,233.26,15.00463607]
[1758501381174,5.34899093,233.33,233.19,4.98834855]
[1758501381375,0.65,233.32,233.19,15.70921994]
[1758501381671,0.65,233.32,233.19,4.98834855]
[1758501382166,5.34899093,233.23,233.13,4.28945223]
[1758501382343,5.34899093,233.23,233.13,15.01308282]
[1758501382862,0.65,233.24,233.11,4.98970271]
[1758501383240,0.65,233.31,233.14,31.2]
[1758501383563,0.65,233.31,233.15,0.7]
[1758501383748,5.34899093,233.34,233.16,15.01115113]
[1758501383953,5.34899093,233.34,233.17,0.7]
[1758501384165,5.34899093,233.34,233.19,31.2]
[1758501384478,0.65,233.35,233.2,0.7]
[1758501384777,0.65,233.35,233.21,15.00793275]
[1758501385252,0.65,233.35,233.22,0.7]
[1758501385452,5.34899093,233.26,233.15,0.7]
[1758501385679,5.34899093,233.25,233.09,0.7]
[1758501385860,5.34899093,233.23,233.09,0.7]
[1758501386168,0.65,233.24,233.09,0.7]
[1758501386362,0.65,233.29,233.09,0.7]
[1758501386558,5.34899093,233.28,233.09,0.7]
[1758501386868,0.65,233.29,233.13,31.2]
[1758501387047,0.65,233.29,233.14,0.68]
[1758501387244,3.47151466,233.47,233.14,0.68]
[1758501387245,0.7,233.33,233.14,0.68]
[1758501387446,0.7,233.37,233.14,0.68]
[1758501387659,5.34899093,233.35,233.14,0.68]
[1758501387859,5.34899093,233.22,233.08,0.68]
[1758501388070,0.7,233.21,233.08,4.97030327]
[1758501388271,0.7,233.21,232.95,2.23608929]
[1758501388447,0.7,233.2,232.82,20.0]
[1758501388778,0.7,233.2,233.02,0.68]
[1758501388958,5.34899093,233.17,233.02,4.97142349]
[1758501389264,0.7,233.2,233.03,0.68]
[1758501389842,0.7,233.2,233.05,31.2]
[1758501390270,6.04899093,233.2,233.05,31.2]
[1758501390459,0.7,233.2,233.05,31.2]
[1758501390671,0.7,233.24,233.06,0.68]
[1758501390877,34.76,233.3,233.1,31.2]
[1758501391086,5.34899093,233.18,233.07,4.29055648]
[1758501391244,5.34899093,233.09,232.9,4.97368827]
[1758501391446,5.34899093,233.22,232.9,4.97368827]
[1758501391447,0.7,233.1,232.91,0.68]
[1758501391659,0.7,233.1,232.93,31.2]
[1758501391946,0.7,233.09,232.94,0.68]
[1758501392568,0.7,233.21,232.95,0.42927666]
[1758501392769,5.34899093,233.16,232.97,15.02339356]
[1758501392955,0.7,233.21,232.97,15.02339356]
[1758501392956,0.7,233.15,232.98,0.68]
[1758501393148,0.7,233.19,233.0,31.2]
[1758501393352,0.7,233.26,233.01,1.10916613]
[1758501393562,0.7,233.26,233.02,0.68]
[1758501393766,0.7,233.26,233.03,0.42912929]
[1758501393974,5.34899093,233.22,233.04,0.68]
[1758501394152,0.7,233.21,233.04,0.68]
[1758501394355,0.7,233.21,233.0,31.2]
[1758501394578,0.7,233.21,233.01,0.68]
[1758501394881,0.7,233.21,233.05,31.2]
[1758501395177,0.7,233.2,233.02,15.02016993]
[1758501395362,0.7,233.2,233.05,31.2]
[1758501395563,0.7,233.2,233.06,0.68]
[1758501395760,6.04899093,233.2,233.06,0.68]
[1758501395981,0.7,233.25,233.06,0.68]
[1758501396183,21.65796361,233.46,233.06,0.68]
[1758501396184,0.7,233.31,233.07,0.42905564]
[1758501396357,0.7,233.36,233.09,31.2]
[1758501396559,0.7,233.36,233.1,1.10900042]
[1758501396778,0.7,233.35,233.11,0.68]
[1758501396951,2.74537416,233.41,233.15,31.2]
[1758501397293,0.7,233.4,233.16,1.10889003]
[1758501397470,34.78,233.46,233.17,0.68]
[1758501397655,0.7,233.43,233.18,0.42885324]
[1758501397860,0.7,233.43,233.16,31.2]
[1758501397861,0.7,233.43,233.19,0.68]
[1758501398255,5.34899093,233.42,233.19,0.68]
[1758501398454,0.7,233.41,233.19,1.10883485]
[1758501398674,34.78,233.46,233.15,31.2]
[1758501398675,0.7,233.4,233.15,31.2]
[1758501398855,0.7,233.39,233.16,15.01115113]
[1758501399058,0.7,233.38,233.17,0.68]
[1758501399280,0.7,233.38,233.19,31.2]
[1758501399470,0.7,233.43,233.2,1.10881646]
[1758501399677,0.7,233.42,233.21,0.68]
[1758501400072,0.7,233.42,233.14,4.289174]
[1758501400283,31.2,233.39,233.14,4.289174]
[1758501400581,31.2,233.39,233.12,0.68]
[1758501400582,31.2,233.3,233.12,0.68]
[1758501400797,31.2,233.32,233.06,0.68]
[1758501401097,58.14,233.35,233.07,4.29055648]
[1758501401098,31.2,233.28,233.07,4.29055648]
[1758501401274,0.7,233.27,233.07,15.01694769]
[1758501401588,0.7,233.26,233.08,0.68]
[1758501401883,0.7,233.33,233.1,31.2]
[1758501402090,0.7,233.33,233.11,1.10898202]
[1758501402285,31.2,233.44,233.12,0.68]
[1758501402286,0.7,233.32,233.12,0.68]
[1758501402462,6.68596322,233.32,233.12,0.68]
[1758501402785,0.7,233.32,233.12,0.68]
[1758501403083,0.7,233.32,233.16,31.2]
[1758501403384,5.98596322,233.28,233.13,4.28945223]
[1758501403564,0.7,233.27,233.13,4.28945223]
[1758501403765,0.7,233.27,233.13,15.01308282]
[1758501404090,0.7,233.33,233.14,0.68]
[1758501404386,6.68596322,233.33,233.14,0.68]
[1758501404684,0.7,233.33,233.16,31.2]
[1758501404892,0.7,233.32,233.17,15.01050734]
[1758501405209,6.68596322,233.37,233.2,31.2]
[1758501405407,38.23151466,233.5,233.21,0.68]
[1758501405408,34.76,233.5,233.21,0.68]
[1758501405585,3.44872264,233.49,233.21,0.68]